bitfinex/quotes_SOLUSD_20250719
["timestamp","ask_amount","ask_price","bid_price","bid_amount"]
[1752941647899,4.30934817,177.13,177.08,0.67]
[1752941648110,4.30934817,177.12,177.1,26.0]
[1752941648301,3.60934817,177.13,177.1,26.0]
[1752941649497,5.64588979,177.12,177.1,26.0]
[1752941650215,4.30934817,177.11,177.08,0.67]
[1752941650419,3.60934817,177.1,177.07,26.0]
[1752941651110,3.60934817,177.09,177.07,26.0]
[1752941651516,0.7,177.1,177.07,26.67]
[1752941651517,3.60934817,177.1,177.07,26.67]
[1752941651891,3.60934817,177.1,177.07,26.0]
[1752941652330,3.60934817,177.1,177.07,26.67]
[1752941652615,5.64684623,177.09,177.07,26.67]
[1752941653500,5.64557104,177.13,177.08,4.27934817]
[1752941653718,4.81020214,177.13,177.1,3.60934817]
[1752941653890,4.81020214,177.13,177.1,4.27934817]
[1752941654398,4.81020214,177.13,177.1,0.67]
[1752941655332,8.41955031,177.13,177.1,26.0]
[1752941655537,3.60934817,177.11,177.07,26.0]
[1752941655697,3.60934817,177.08,177.07,26.0]
[1752941656029,3.60934817,177.08,177.05,0.67]
[1752941656030,3.60934817,177.09,177.06,26.0]
[1752941656196,3.60934817,177.09,177.06,26.67]
[1752941657025,5.64493367,177.15,177.08,3.60934817]
[1752941657215,3.60934817,177.14,177.09,30.27934817]
[1752941657522,3.60934817,177.14,177.1,0.67]
[1752941657719,3.60934817,177.14,177.09,29.60934817]
[1752941657894,3.60934817,177.14,177.11,0.67]
[1752941658094,5.64557104,177.13,177.11,0.67]
[1752941659830,5.64557104,177.13,177.09,30.27934817]
[1752941660838,5.64557104,177.13,177.1,0.67]
[1752941662133,5.64557104,177.13,177.09,29.60934817]
[1752941662316,5.64557104,177.13,177.11,26.67]
[1752941662521,3.60934817,177.14,177.11,26.67]
[1752941662522,9.25468568,177.14,177.11,26.67]
[1752941662721,5.64533751,177.14,177.11,26.67]
[1752941663620,5.64533751,177.14,177.12,0.7]
[1752941663852,5.64533751,177.14,177.11,26.0]
[1752941664046,5.64533751,177.14,177.11,26.7]
[1752941666922,9.25428184,177.15,177.11,26.7]
[1752941667138,5.64493367,177.15,177.12,30.30934817]
[1752941667441,45.34463274,177.16,177.13,30.30934817]
[1752941667607,45.34463274,177.16,177.14,0.7]
[1752941668213,0.71,177.15,177.13,26.0]
[1752941668448,45.34463274,177.16,177.13,26.7]
[1752941669743,48.95398091,177.16,177.13,26.7]
[1752941669942,45.34463274,177.16,177.13,30.30934817]
[1752941670240,39.7,177.16,177.14,4.30934817]
[1752941670545,5.70439889,177.17,177.14,4.30934817]
[1752941670838,5.70439889,177.17,177.15,0.7]
[1752941671042,5.70439889,177.17,177.14,26.7]
[1752941671369,6.41439889,177.17,177.14,26.0]
[1752941672446,5.70439889,177.17,177.14,26.0]
[1752941672623,0.71,177.16,177.15,26.0]
[1752941672830,0.71,177.16,177.14,26.0]
[1752941673352,5.70439889,177.17,177.14,30.30934817]
[1752941673523,5.70439889,177.17,177.14,29.60934817]
[1752941673721,6.41439889,177.17,177.14,29.60934817]
[1752941674117,5.70439889,177.17,177.14,30.30934817]
[1752941674819,5.70439889,177.17,177.14,26.7]
[1752941675020,0.71,177.16,177.14,26.0]
[1752941675440,3.60934817,177.15,177.14,26.0]
[1752941675721,4.31934817,177.15,177.14,26.0]
[1752941675939,9.31374706,177.17,177.14,26.0]
[1752941676554,9.31374706,177.17,177.14,30.30934817]
[1752941676555,5.70439889,177.17,177.14,30.30934817]
[1752941676724,5.70439889,177.17,177.14,26.7]
[1752941677358,9.31374706,177.17,177.14,26.7]
[1752941677521,9.31374706,177.17,177.14,26.0]
[1752941677522,10.02374706,177.17,177.14,26.0]
[1752941678617,4.31934817,177.16,177.14,26.0]
[1752941678822,4.31934817,177.15,177.1,17.50174817]
[1752941679022,3.60934817,177.13,177.1,7.4]
[1752941679336,3.60934817,177.13,177.12,26.0]
[1752941680731,9.25491921,177.13,177.12,26.0]
[1752941682129,5.64557104,177.13,177.12,26.0]
[1752941682623,5.6453504,177.14,177.12,26.7]
[1752941682828,5.6453504,177.14,177.13,26.0]
[1752941683053,48.93440215,177.15,177.13,26.7]
[1752941683238,48.93440215,177.15,177.13,0.7]
[1752941683745,45.32505398,177.15,177.13,0.7]
[1752941683948,39.68,177.15,177.14,0.7]
[1752941684131,5.64473533,177.16,177.14,0.7]
[1752941684951,0.06,177.17,177.13,29.60934817]
[1752941684952,9.3136446,177.17,177.13,26.0]
[1752941685129,9.25967579,177.17,177.13,26.0]
[1752941685455,9.96967579,177.17,177.13,26.7]
[1752941686850,4.31934817,177.16,177.12,3.60934817]
[1752941687161,4.31934817,177.16,177.13,26.0]
[1752941687334,3.60934817,177.16,177.13,26.0]
[1752941687659,3.60934817,177.16,177.13,26.7]
[1752941688156,5.65032762,177.17,177.14,30.30934817]
[1752941688569,5.65032762,177.17,177.15,0.7]
[1752941689131,5.65032762,177.17,177.15,26.7]
[1752941689334,0.00603119,177.17,177.15,26.0]
[1752941689539,0.00603119,177.17,177.16,4.30934817]
[1752941690129,0.00603119,177.17,177.16,30.30934817]
[1752941694740,0.00603119,177.17,177.16,26.0]
[1752941695077,0.00603119,177.17,177.09,16.81468397]
[1752941695078,4.30537936,177.17,177.11,16.78468397]
[1752941695367,3.60934817,177.16,177.12,43.96934817]
[1752941695567,4.29934817,177.16,177.15,26.0]
[1752941695954,9.9439632,177.16,177.15,26.0]
[1752941696153,9.9439632,177.16,177.12,39.66]
[1752941696358,4.29934817,177.15,177.14,26.0]
[1752941697259,9.94428184,177.15,177.14,26.0]
[1752941697466,5.64493367,177.15,177.14,26.0]
[1752941698357,9.94428184,177.15,177.13,26.03]
[1752941698672,4.29934817,177.14,177.13,26.03]
[1752941698873,4.29934817,177.14,177.13,0.03]
[1752941699259,9.94460051,177.14,177.13,0.03]
[1752941699864,9.94460051,177.14,177.09,6.73]
[1752941699865,27.66707953,177.14,177.09,6.73]
[1752941700049,3.60934817,177.1,177.09,0.03]
[1752941700579,60.10838319,177.14,177.09,0.73]
[1752941700754,3.60934817,177.11,177.09,0.03]
[1752941701273,9.94587555,177.1,177.09,0.03]
[1752941701656,9.25587555,177.1,177.09,0.03]
[1752941701856,9.94587555,177.1,177.09,0.03]
[1752941702449,24.06219401,177.1,177.06,26.0]
[1752941702650,3.60934817,177.07,177.06,26.0]
[1752941702863,4.29934817,177.07,177.05,0.03]
[1752941703066,39.66,177.09,177.05,0.03]
[1752941703067,4.29934817,177.06,177.05,0.03]
[1752941703265,6.337803,177.06,177.05,0.03]
[1752941703447,9.94715117,177.06,177.05,0.03]
[1752941704367,5.647803,177.06,177.05,0.03]
[1752941704567,3.60934817,177.08,177.05,26.73]
[1752941704773,39.66,177.09,177.06,0.7]
[1752941704959,43.26934817,177.09,177.06,0.7]
[1752941705273,5.64716512,177.08,177.06,0.7]
[1752941705473,3.60934817,177.1,177.05,3.63934817]
[1752941705682,17.72368405,177.13,177.08,3.60934817]
[1752941705983,3.60934817,177.11,177.09,26.0]
[1752941706175,4.29934817,177.11,177.07,26.0]
[1752941706564,4.29934817,177.11,177.07,26.7]
[1752941707285,3.60934817,177.11,177.08,0.7]
[1752941707596,39.66,177.14,177.09,0.7]
[1752941707757,9.25491921,177.13,177.1,0.7]
[1752941707964,3.60934817,177.12,177.08,30.30934817]
[1752941708568,4.29934817,177.12,177.08,26.7]
[1752941709259,3.60934817,177.12,177.09,0.7]
[1752941709786,5.64620857,177.11,177.09,0.7]
[1752941712969,5.64620857,177.11,177.08,26.0]
[1752941713284,5.64620857,177.11,177.08,26.7]
[1752941714183,9.25555674,177.11,177.08,26.7]
[1752941714988,5.64620857,177.11,177.08,26.7]
[1752941715486,5.64620857,177.11,177.09,0.7]
[1752941715674,3.60934817,177.13,177.09,4.30934817]
[1752941715986,3.60934817,177.12,177.09,26.7]
[1752941717173,3.60934817,177.12,177.09,26.0]
[1752941717491,5.64620857,177.11,177.09,26.0]
[1752941718059,5.64620857,177.11,177.09,26.7]
[1752941719083,39.66,177.14,177.1,4.30934817]
[1752941719268,39.66,177.14,177.11,0.7]
[1752941719269,0.06,177.12,177.11,0.7]
[1752941719480,0.06,177.12,177.1,26.0]
[1752941719775,4.35934817,177.12,177.1,26.0]
[1752941720358,3.66934817,177.12,177.1,26.0]
[1752941720587,4.35934817,177.12,177.09,0.03]
[1752941721492,9.94555674,177.11,177.09,0.03]
[1752941722190,9.25555674,177.11,177.1,26.0]
[1752941722360,0.06,177.12,177.1,26.7]
[1752941722564,0.06,177.12,177.11,0.7]
[1752941723068,0.06,177.12,177.1,26.0]
[1752941723270,0.06,177.12,177.11,0.69]
[1752941726892,0.06,177.12,177.11,4.29934817]
[1752941727065,0.06,177.12,177.11,0.69]
[1752941727266,0.06,177.12,177.11,4.29934817]
[1752941727982,0.06,177.12,177.11,9.94555674]
[1752941728186,0.06,177.12,177.11,4.29934817]
[1752941728684,0.06,177.15,177.14,26.0]
[1752941729671,4.32934817,177.15,177.14,26.0]
[1752941730178,4.32934817,177.15,177.09,6.73]
[1752941730385,3.60934817,177.12,177.09,6.73]
[1752941730564,3.60934817,177.11,177.09,6.73]
[1752941730768,3.60934817,177.11,177.09,0.03]
[1752941730969,9.25558953,177.11,177.1,26.0]
[1752941731276,5.64624136,177.11,177.1,26.0]
[1752941731473,3.60934817,177.12,177.11,26.0]
[1752941731684,4.26934817,177.12,177.09,0.03]
[1752941731885,3.60934817,177.1,177.09,0.03]
[1752941732493,4.26934817,177.1,177.09,26.03]
[1752941732977,9.91587555,177.1,177.09,26.03]
[1752941734562,9.91587555,177.1,177.05,0.72]
[1752941734563,24.03219401,177.1,177.05,0.03]
[1752941734762,3.60934817,177.06,177.05,0.03]
[1752941734966,9.25715117,177.06,177.05,0.03]
[1752941735205,9.91715117,177.06,177.05,0.03]
[1752941736712,49.57715117,177.06,177.05,1e-08]
[1752941737087,67.30600685,177.06,177.02,0.03]
[1752941737384,7.21869634,177.03,177.02,0.03]
[1752941737811,7.87869634,177.03,177.02,0.03]
[1752941738383,13.52745643,177.03,177.02,0.03]
[1752941740513,9.91810826,177.03,177.02,0.03]
[1752941741993,45.96876009,177.03,177.02,0.03]
[1752941742208,49.57810826,177.03,177.02,0.03]
[1752941744816,53.18745643,177.03,177.02,0.03]
[1752941745013,53.18745643,177.03,177.01,1e-08]
[1752941745325,4.26934817,177.02,177.01,1e-08]
[1752941746319,4.26934817,177.02,176.95,0.03]
[1752941746497,69.5470085,177.03,176.95,0.03]
[1752941746498,3.60934817,176.96,176.95,0.03]
[1752941746700,43.28934817,176.96,176.95,0.03]
[1752941747022,45.33099457,176.96,176.95,0.03]
[1752941747184,48.94034274,176.96,176.95,0.03]
[1752941747489,9.26034274,176.96,176.95,0.03]
[1752941749394,9.92034274,176.96,176.95,0.03]
[1752941750693,5.65035597,176.98,176.95,0.03]
[1752941750894,5.65035597,176.98,176.95,4.32934817]
[1752941751117,3.60934817,176.96,176.95,0.03]
[1752941751288,3.60934817,176.96,176.95,26.03]
[1752941752117,43.28934817,176.96,176.95,26.03]
[1752941752316,43.94934817,176.96,176.95,0.03]
[1752941752905,49.60034274,176.96,176.95,0.03]
[1752941754432,14.12247633,177.03,176.95,26.03]
[1752941754635,3.60934817,176.99,176.95,26.69]
[1752941754921,3.60934817,176.97,176.95,26.03]
[1752941755124,3.60934817,176.97,176.95,0.03]
[1752941755413,40.4,176.98,176.96,26.0]
[1752941755414,39.68,176.98,176.96,26.0]
[1752941755618,45.33037947,176.98,176.96,26.0]
[1752941755824,5.65037947,176.98,176.97,0.66]
[1752941756398,9.25972764,176.98,176.95,26.03]
[1752941756620,9.25972764,176.98,176.95,26.69]
[1752941756917,3.60934817,176.97,176.95,26.69]
[1752941757216,9.26009596,176.97,176.95,26.69]
[1752941757421,9.26009596,176.97,176.95,26.03]
[1752941757712,5.65074779,176.97,176.95,26.03]
[1752941757919,5.65074779,176.97,176.95,26.69]
[1752941758915,5.65047265,176.98,176.95,26.69]
[1752941759122,9.25982082,176.98,176.95,26.69]
[1752941759709,9.25982082,176.98,176.95,26.03]
[1752941760222,5.65047265,176.98,176.95,26.03]
[1752941760406,9.25982082,176.98,176.95,26.69]
[1752941760730,5.65047265,176.98,176.95,26.69]
[1752941760912,9.25982082,176.98,176.95,26.69]
[1752941761106,9.25982082,176.98,176.95,26.03]
[1752941761320,9.25982082,176.98,176.96,0.66]
[1752941761512,3.60934817,176.97,176.95,26.03]
[1752941761709,3.60934817,176.96,176.95,26.03]
[1752941761916,3.60934817,176.97,176.95,26.03]
[1752941762109,9.25982082,176.98,176.95,26.03]
[1752941762310,43.28934817,176.98,176.96,0.66]
[1752941762510,9.26002342,176.97,176.95,26.03]
[1752941762711,3.60934817,176.96,176.95,26.03]
[1752941763528,9.26002342,176.97,176.95,26.03]
[1752941763719,9.26002342,176.97,176.95,26.69]
[1752941764119,3.60934817,177.03,176.95,26.69]
[1752941764120,5.6490792,177.02,176.95,26.03]
[1752941764427,3.60934817,176.99,176.96,0.66]
[1752941764637,9.25952353,176.99,176.96,0.66]
[1752941765001,9.25952353,176.99,176.95,26.03]
[1752941765002,45.38940293,177.01,176.97,4.26934817]
[1752941765198,39.74,177.01,176.98,3.60934817]
[1752941765437,0.06,177.01,176.99,4.26934817]
[1752941765621,0.06,177.01,177.0,4.26934817]
[1752941765828,0.06,177.05,177.04,26.0]
[1752941766003,0.06,177.05,177.04,54.59913214]
[1752941766206,0.06,177.05,177.04,55.25913214]
[1752941766701,0.06,177.05,177.04,60.90757317]
[1752941770333,0.06,177.05,177.04,61.47241727]
[1752941771218,0.06,177.05,177.04,68.17241727]
[1752941771941,0.06,177.09,177.08,42.78468397]
[1752941772120,0.06,177.09,177.08,92.28591377]
[1752941772319,0.06,177.09,177.08,92.94591377]
[1752941772647,0.06,177.12,177.11,42.78468397]
[1752941772829,0.06,177.12,177.11,90.22800116]
[1752941773015,0.06,177.12,177.11,90.88800116]
[1752941774257,0.06,177.12,177.11,92.92486156]
[1752941775531,0.06,177.12,177.11,96.53420973]
[1752941776835,0.06,177.12,177.11,0.56462085]
[1752941777035,0.06,177.12,177.09,4.26934817]
[1752941777226,0.06,177.12,177.1,3.60934817]
[1752941777429,0.06,177.12,177.11,3.60934817]
[1752941777634,0.06,177.12,177.11,29.60934817]
[1752941778330,0.06,177.12,177.1,29.60934817]
[1752941778533,0.06,177.12,177.11,26.0]
[1752941779044,0.06,177.12,177.11,26.66]
[1752941779248,0.06,177.12,177.11,26.0]
[1752941779421,0.06,177.12,177.11,29.60934817]
[1752941781051,0.06,177.12,177.11,86.69403214]
[1752941781430,0.06,177.12,177.11,92.34024071]
[1752941782128,0.06,177.12,177.11,99.04024071]
[1752941782551,0.06,177.12,177.11,102.64958888]
[1752941783034,0.06,177.12,177.11,99.04024071]
[1752941783526,0.06,177.12,177.11,102.64958888]
[1752941784857,0.06,177.12,177.11,103.21420973]
[1752941785447,0.06,177.12,177.11,142.80420973]
[1752941785645,0.06,177.12,177.11,136.58958888]
[1752941785840,0.06,177.12,177.11,142.23958888]
[1752941786028,0.06,177.15,177.14,42.78468397]
[1752941786228,0.06,177.15,177.14,93.29855737]
[1752941786447,0.06,177.15,177.14,93.98855737]
[1752941786857,0.06,177.15,177.14,99.63855737]
[1752941787041,0.06,177.15,177.14,105.28380971]
[1752941788032,0.06,177.15,177.14,99.63380971]
[1752941788559,0.06,177.15,177.14,92.73403214]
[1752941788947,0.06,177.15,177.14,93.42403214]
[1752941789480,0.06,177.15,177.14,99.06928448]
[1752941789965,0.06,177.15,177.14,93.42403214]
[1752941790140,0.06,177.15,177.14,92.73403214]
[1752941790843,0.06,177.15,177.14,93.42403214]
[1752941791040,0.06,177.15,177.14,99.06928448]
[1752941791905,0.06,177.15,177.14,95.45993631]
[1752941792056,0.06,177.15,177.14,92.73403214]
[1752941792559,0.06,177.15,177.14,75.94934817]
[1752941793867,0.06,177.15,177.14,99.06928448]
[1752941795312,0.06,177.15,177.14,104.71928448]
[1752941796366,0.06,177.15,177.14,99.06928448]
[1752941797477,0.06,177.15,177.14,104.71928448]
[1752941798263,0.06,177.15,177.14,99.63380971]
[1752941799888,0.06,177.16,177.15,23.19968397]
[1752941800194,0.06,177.16,177.15,27.49903214]
[1752941800373,0.00603119,177.17,177.16,22.43468397]
[1752941800573,0.1,177.19,177.17,16.78468397]
[1752941800800,0.1,177.19,177.18,60.57842992]
[1752941800999,0.1,177.19,177.18,61.26842992]
[1752941801210,0.1,177.19,177.18,67.96842992]
[1752941801873,0.06,177.25,177.18,67.96842992]
[1752941801874,0.06,177.25,177.19,16.78468397]
[1752941802175,0.06,177.25,177.2,64.18771439]
[1752941802373,0.06,177.25,177.2,70.52105524]
[1752941804303,0.06,177.25,177.21,26.20598031]
[1752941804595,0.06,177.25,177.21,38.54900271]
[1752941804990,0.06,177.25,177.22,60.70403214]
[1752941805186,0.06,177.25,177.22,66.92313214]
[1752941805598,0.06,177.25,177.24,50.72468397]
[1752941805795,0.1,177.3,177.28,76.72468397]
[1752941805988,0.1,177.3,177.29,97.56338031]
[1752941806379,0.1,177.3,177.29,103.89385636]
[1752941806602,0.1,177.33,177.32,76.72468397]
[1752941806808,0.1,177.33,177.32,119.95403214]
[1752941807107,0.1,177.33,177.32,120.64403214]
[1752941808008,0.1,177.33,177.32,42.78468397]
[1752941808009,0.76,177.33,177.32,42.78468397]
[1752941808213,0.1,177.33,177.32,86.03403214]
[1752941808586,0.1,177.33,177.32,89.54783652]
[1752941808909,0.1,177.33,177.32,95.18735828]
[1752941809210,0.1,177.33,177.32,129.12735828]
[1752941809711,0.1,177.33,177.32,119.18848835]
[1752941809909,0.76,177.33,177.32,122.79783652]
[1752941810215,0.76,177.33,177.32,86.03403214]
[1752941810714,0.1,177.33,177.32,86.03403214]
[1752941810900,0.1,177.33,177.32,92.3635539]
[1752941811409,0.1,177.33,177.32,126.1735539]
[1752941811611,0.1,177.33,177.32,132.8735539]
[1752941812322,0.1,177.33,177.32,135.73554589]
[1752941814522,0.1,177.33,177.32,129.03554589]
[1752941814830,0.81,177.33,177.32,122.70602413]
[1752941816003,0.1,177.33,177.32,122.70602413]
[1752941816206,0.1,177.33,177.32,129.03554589]
[1752941817607,0.1,177.33,177.32,152.67554589]
[1752941819519,0.1,177.33,177.32,151.98554589]
[1752941819733,0.1,177.33,177.32,152.67554589]
[1752941819911,0.81,177.33,177.32,89.76602413]
[1752941820116,0.1,177.33,177.32,135.00554589]
[1752941820431,0.81,177.33,177.32,103.36602413]
[1752941821661,0.81,177.33,177.32,109.00554589]
[1752941821662,0.1,177.33,177.32,109.00554589]
[1752941822210,0.1,177.33,177.32,103.36602413]
[1752941823414,0.1,177.33,177.32,109.00554589]
[1752941824511,0.1,177.33,177.32,102.30554589]
[1752941824904,0.1,177.33,177.32,102.99554589]
[1752941828141,0.1,177.33,177.32,109.69554589]
[1752941830342,0.06,177.37,177.32,109.69554589]
[1752941830343,0.06,177.37,177.32,140.73435031]
[1752941830642,0.06,177.41,177.36,83.81338031]
[1752941830841,0.06,177.41,177.4,20.39403214]
[1752941831038,0.06,177.41,177.4,56.36468397]
[1752941831237,0.06,177.41,177.4,59.97403214]
[1752941831537,0.77,177.41,177.39,33.81]
[1752941831729,0.77,177.41,177.4,26.0]
[1752941832235,4.37934817,177.41,177.4,26.0]
[1752941833048,0.77,177.41,177.4,26.0]
[1752941833618,0.77,177.41,177.4,29.60934817]
[1752941835840,0.77,177.41,177.4,69.18934817]
[1752941836024,0.06,177.41,177.4,69.18934817]
[1752941836831,0.77,177.41,177.4,69.18934817]
[1752941841143,0.77,177.41,177.4,119.78403214]
[1752941841144,0.06,177.41,177.4,119.78403214]
[1752941841331,0.06,177.41,177.4,125.42101071]
[1752941841753,0.77,177.41,177.4,119.78403214]
[1752941842255,0.06,177.41,177.4,125.42101071]
[1752941844247,0.06,177.41,177.4,126.09101071]
[1752941844850,0.06,177.41,177.4,125.42101071]
[1752941845363,0.73,177.41,177.4,116.17468397]
[1752941845653,0.73,177.41,177.4,119.78403214]
[1752941845952,0.73,177.41,177.4,116.17468397]
[1752941846133,0.73,177.41,177.4,39.58]
[1752941846456,0.73,177.41,177.4,43.18934817]
[1752941846660,0.06,177.41,177.4,94.45403214]
[1752941847439,0.06,177.41,177.4,100.09101071]
[1752941847953,0.06,177.41,177.4,106.79101071]
[1752941848354,0.06,177.45,177.44,76.59468397]
[1752941848558,0.1,177.51,177.44,166.77835776]
[1752941848860,0.1,177.51,177.5,54.20403214]
[1752941849071,0.1,177.51,177.5,93.80403214]
[1752941849241,0.1,177.51,177.5,94.47403214]
[1752941850160,0.1,177.51,177.5,50.59468397]
[1752941850351,0.1,177.51,177.5,93.82403214]
[1752941850552,0.1,177.51,177.5,94.49403214]
[1752941851067,0.1,177.51,177.5,57.12217455]
[1752941851274,0.1,177.51,177.5,50.59468397]
[1752941851573,0.1,177.51,177.4,33.81]
[1752941851574,1.5762,177.5,177.4,33.81]
[1752941851867,1.5762,177.5,177.42,33.81]
[1752941851868,5.85749058,177.46,177.42,33.81]
[1752941852045,6.52749058,177.45,177.43,39.8]
[1752941852247,5.85749058,177.45,177.44,56.0]
[1752941852460,11.49288083,177.45,177.44,56.0]
[1752941852872,12.16288083,177.45,177.44,30.0]
[1752941853178,12.16288083,177.45,177.44,56.0]
[1752941853941,6.30539025,177.45,177.44,56.0]
[1752941854160,12.16288083,177.45,177.44,26.0]
[1752941854649,12.16288083,177.45,177.4,39.78]
[1752941854850,5.85749058,177.41,177.39,39.8]
[1752941855052,6.52749058,177.4,177.38,39.8]
[1752941855264,0.67,177.39,177.38,39.8]
[1752941855651,6.52749058,177.39,177.38,39.8]
[1752941855857,0.67,177.39,177.38,39.8]
[1752941856038,6.30729635,177.39,177.38,39.8]
[1752941856981,12.16478693,177.39,177.37,39.78]
[1752941857271,0.67,177.38,177.37,56.56468397]
[1752941858146,6.30761416,177.38,177.37,56.56468397]
[1752941858347,0.67,177.38,177.37,56.56468397]
[1752941859276,12.16524237,177.38,177.35,39.76]
[1752941859455,0.67,177.38,177.35,39.76]
[1752941859657,6.30762775,177.38,177.37,26.0]
[1752941859962,5.63762775,177.38,177.37,26.0]
[1752941860346,12.16511833,177.38,177.37,26.0]
[1752941860548,6.30762775,177.38,177.37,26.0]
[1752941862567,12.16511833,177.38,177.37,26.0]
[1752941863646,12.16511833,177.38,177.36,26.0]
[1752941863846,6.52749058,177.37,177.36,26.0]
[1752941864147,6.52749058,177.37,177.33,65.79]
[1752941864362,0.67,177.36,177.35,26.0]
[1752941864570,6.30824988,177.36,177.35,26.0]
[1752941864874,12.16574046,177.36,177.35,26.0]
[1752941866860,12.16574046,177.36,177.33,0.03]
[1752941867065,5.85749058,177.34,177.33,0.03]
[1752941867560,6.52749058,177.34,177.33,0.03]
[1752941868972,6.30888575,177.34,177.33,0.03]
[1752941869156,12.16637633,177.34,177.33,0.03]
[1752941871670,6.30888575,177.34,177.33,0.03]
[1752941871862,12.16637633,177.34,177.33,0.03]
[1752941872968,24.01236254,177.34,177.3,0.03]
[1752941873165,3.6062624,177.31,177.3,0.03]
[1752941873687,4.3062624,177.31,177.3,0.03]
[1752941874658,9.94610222,177.31,177.3,0.03]
[1752941875074,12.21863654,177.31,177.3,0.03]
[1752941879193,12.21863654,177.31,177.29,0.03]
[1752941879359,6.57879672,177.3,177.29,0.03]
[1752941879754,12.21895464,177.3,177.29,0.03]
[1752941880578,5.64015792,177.3,177.29,0.03]
[1752941880782,11.51895464,177.3,177.29,0.03]
[1752941881087,11.51747612,177.35,177.32,26.0]
[1752941881276,5.63835154,177.36,177.32,32.53879672]
[1752941881479,5.63804371,177.37,177.33,32.53879672]
[1752941881715,6.57879672,177.39,177.37,26.0]
[1752941881873,12.21619118,177.39,177.37,26.0]
[1752941882490,5.87879672,177.41,177.37,26.66]
[1752941882662,5.87879672,177.41,177.39,26.0]
[1752941882862,11.51553885,177.41,177.39,26.0]
[1752941883162,40.42,177.44,177.39,0.66]
[1752941883163,11.5148715,177.43,177.39,0.66]
[1752941883491,0.7,177.44,177.39,0.66]
[1752941883492,5.87879672,177.44,177.43,26.0]
[1752941883689,6.57879672,177.44,177.36,0.66]
[1752941883867,5.63634314,177.42,177.39,26.0]
[1752941884208,5.87879672,177.4,177.39,26.0]
[1752941884363,6.57879672,177.4,177.38,26.0]
[1752941884563,6.57879672,177.39,177.38,26.0]
[1752941885367,5.87879672,177.39,177.38,26.0]
[1752941886115,11.51609307,177.39,177.38,26.0]
[1752941886310,12.21609307,177.39,177.38,26.0]
[1752941888311,6.33729635,177.39,177.38,26.0]
[1752941888518,12.21609307,177.39,177.38,26.0]
[1752941888830,5.87879672,177.4,177.38,26.0]
[1752941889002,14.09040663,177.43,177.39,26.66]
[1752941889003,5.87879672,177.43,177.39,26.66]
[1752941889235,5.87879672,177.42,177.39,26.66]
[1752941889429,5.87879672,177.42,177.4,26.0]
[1752941890211,11.51523923,177.42,177.4,26.0]
[1752941890414,6.57879672,177.41,177.4,26.0]
[1752941891028,5.87879672,177.41,177.4,26.0]
[1752941891218,11.51523923,177.42,177.4,26.0]
[1752941891759,5.87879672,177.41,177.4,26.0]
[1752941892108,6.33644251,177.42,177.4,26.0]
[1752941892109,12.21523923,177.42,177.4,26.0]
[1752941892329,5.87879672,177.42,177.4,26.0]
[1752941892634,6.57879672,177.41,177.4,26.0]
[1752941893725,5.87879672,177.41,177.4,26.0]
[1752941894238,11.51545756,177.41,177.4,26.0]
[1752941894450,12.21545756,177.41,177.4,26.0]
[1752941894856,12.21545756,177.41,177.36,0.66]
[1752941895038,5.87879672,177.39,177.38,26.0]
[1752941895238,6.57879672,177.39,177.38,26.0]
[1752941895844,6.57879672,177.39,177.32,16.78468397]
[1752941896148,5.87879672,177.36,177.32,16.78468397]
[1752941896334,11.51708567,177.36,177.32,17.44468397]